lending/lending_fUSD_20260206
["ID","MTS","AMOUNT","RATE_DAILY","PERIOD"]
[404668762,1770404438108,-10000.01,9.264e-05,2]
[404668763,1770404438234,-10000.01,9.264e-05,2]
[404668764,1770404458097,3198.0628683,9.164e-05,2]
[404668767,1770404490141,6728.3003,9.164e-05,2]
[404668768,1770404493208,73.6468317,9.079e-05,2]
[404668769,1770404493232,2261.0531683,9.079e-05,2]
[404668770,1770404493295,193.648,9.079e-05,2]
[404668771,1770404517830,7158.18,9.148e-05,2]
[404668772,1770404541923,10000.01,9.164e-05,2]
[404668773,1770404541947,10000.01,9.164e-05,2]
[404668774,1770404541972,10000.01,9.164e-05,2]
[404668775,1770404541995,10000.01,9.164e-05,2]
[404668776,1770404542017,10000.01,9.164e-05,2]
[404668777,1770404542040,10000.01,9.164e-05,2]
[404668778,1770404542064,10000.01,9.164e-05,2]
[404668779,1770404542085,10000.01,9.164e-05,2]
[404668780,1770404542107,10000.01,9.164e-05,2]
[404668781,1770404542129,10000.01,9.164e-05,2]
[404668782,1770404617728,930.9,8.824e-05,2]
[404668783,1770404658595,1600.0,8.537e-05,2]
[404668784,1770404665768,1910.41,8.511e-05,2]
[404668785,1770404706348,217.8130933,0.00035616,120]
[404668786,1770404721235,5000.01,8.443e-05,2]
[404668787,1770404721255,499.47,8.443e-05,2]
[404668788,1770404731936,-220.31,9e-05,2]
[404668789,1770404829086,988.7,8.278e-05,2]
[404668791,1770404910257,3823.96,8.283e-05,2]
[404668792,1770404949129,-227.4412386,9.064e-05,2]
[404668793,1770404979329,1852.42,8.325e-05,2]
[404668796,1770405031375,-300.0,9.062e-05,2]
[404668797,1770405031385,-300.0,9.062e-05,2]
[404668798,1770405031394,-300.0,9.062e-05,2]
[404668799,1770405031403,-105.3639732,9.062e-05,2]
[404668800,1770405031416,-477.97880591,9.062e-05,2]
[404668801,1770405031427,-616.65722089,9.062e-05,2]
[404668802,1770405031437,-250.0,9.063e-05,2]
[404668803,1770405031446,-300.0,9.063e-05,2]
[404668804,1770405031455,-225.0,9.063e-05,2]
[404668805,1770405031465,-1382.30939059,9.063e-05,2]
[404668806,1770405031476,-2622.47789896,9.063e-05,2]
[404668807,1770405031486,-6374.08985714,9.063e-05,2]
[404668808,1770405031498,-1795.22834089,9.063e-05,2]
[404668809,1770405031509,-1794.47750331,9.063e-05,2]
[404668810,1770405031520,-824.83,9.063e-05,2]
[404668811,1770405031535,-29476.29680911,9.063e-05,2]
[404668812,1770405031545,-238.69663313,9.064e-05,2]
[404668813,1770405031554,-250.0,9.068e-05,2]
[404668814,1770405031564,-1123.0,9.123e-05,2]
[404668815,1770405031574,-500.0,9.127e-05,2]
[404668816,1770405031583,-500.0,9.136e-05,2]
[404668817,1770405031592,-150.0,9.136e-05,2]
[404668819,1770405031605,-504.0,9.151e-05,2]
[404668821,1770405031615,-191.0,9.151e-05,2]
[404668823,1770405031624,-300.0,9.151e-05,2]
[404668825,1770405031634,-150.0,9.152e-05,2]
[404668827,1770405031642,-41439.72242078,9.153e-05,2]
[404668830,1770405031655,-6129.51063731,9.153e-05,2]
[404668832,1770405031664,-151.0,9.16e-05,2]
[404668833,1770405031673,-151.0,9.16e-05,2]
[404668835,1770405031682,-151.0,9.16e-05,2]
[404668837,1770405031691,-162.4674,9.162e-05,2]
[404668839,1770405031700,-3140.52066298,9.163e-05,2]
[404668841,1770405031709,-100581.63468365,9.163e-05,2]
[404668843,1770405031720,-284.15203215,9.163e-05,2]
[404668845,1770405031730,-1342.64096061,9.163e-05,2]
[404668848,1770405031741,-280.63250004,9.163e-05,2]
[404668850,1770405031752,-344.81,9.163e-05,2]
[404668856,1770405037535,-713.98681171,9.163e-05,2]
[404668857,1770405037588,-2519.4917276,9.163e-05,2]
[404668858,1770405037612,-358.33485164,9.163e-05,2]
[404668859,1770405037696,-493835.62822986,9.163e-05,2]
[404668885,1770405039482,-644.20590704,9.163e-05,2]
[404668886,1770405039646,-10138.57672668,9.163e-05,2]
[404668887,1770405039754,-2888955.90556902,9.163e-05,2]
[404668888,1770405039764,-6728.3003,9.164e-05,2]
[404668889,1770405039773,-2500.0,9.164e-05,2]
[404668890,1770405039782,-500.0,9.191e-05,2]
[404668891,1770405039791,-209.57,9.227e-05,2]
[404668892,1770405039801,-9999.99,9.227e-05,2]
[404668893,1770405039810,-1183.0,9.227e-05,2]
[404668894,1770405039823,-5491.36,9.227e-05,2]
[404668895,1770405039833,-299.99,9.233e-05,2]
[404668896,1770405039842,-1539.94,9.233e-05,2]
[404668897,1770405039852,-999.99,9.233e-05,2]
[404668898,1770405039861,-3634.47,9.233e-05,2]
[404668899,1770405039870,-1470.95,9.233e-05,2]
[404668900,1770405039880,-9999.99,9.233e-05,2]
[404668901,1770405039890,-150.99,9.233e-05,2]
[404668902,1770405039900,-310.94,9.233e-05,2]
[404668903,1770405039910,-349.08,9.233e-05,2]
[404668905,1770405039919,-2006.11,9.233e-05,2]
[404668906,1770405039928,-738.0,9.233e-05,2]
[404668908,1770405039937,-427.71,9.237e-05,2]
[404668909,1770405039946,-9999.99,9.237e-05,2]
[404668910,1770405039956,-1621.47,9.237e-05,2]
[404668911,1770405039965,-500.0,9.246e-05,2]
[404668912,1770405039974,-1002.16615002,9.263e-05,2]
[404668913,1770405039984,-14015.2,9.264e-05,2]
[404668914,1770405039993,-9999.99,9.264e-05,2]
[404668915,1770405040002,-251721.14,9.264e-05,2]
[404668916,1770405040012,-9999.99,9.264e-05,2]
[404668917,1770405040022,-500.0,9.264e-05,2]
[404668918,1770405040031,-500.0,9.264e-05,2]
[404668919,1770405040040,-500.0,9.264e-05,2]
[404668920,1770405040049,-500.0,9.264e-05,2]
[404668921,1770405040058,-362.77063245,9.264e-05,2]
[404668922,1770405040068,-150.99,9.264e-05,2]
[404668923,1770405040077,-9999.99,9.264e-05,2]
[404668924,1770405040086,-500.0,9.264e-05,2]
[404668925,1770405040096,-400.0,9.3e-05,2]
[404668926,1770405040108,-27900.7841,9.364e-05,2]
[404668927,1770405040117,-1000.0,9.463e-05,2]
[404668928,1770405040127,-10000.0,9.464e-05,2]
[404668929,1770405040136,-500.0,9.538e-05,2]
[404668930,1770405040146,-1600.0,9.605e-05,2]
[404668931,1770405040155,-1000.0,9.714e-05,2]
[404668932,1770405040164,-150.0,9.728e-05,2]
[404668933,1770405040173,-150.0,9.728e-05,2]
[404668934,1770405040183,-180.53234809,9.728e-05,2]
[404668935,1770405040192,-150.0,9.728e-05,2]
[404668936,1770405040201,-150.0,9.728e-05,2]
[404668937,1770405040211,-150.0,9.728e-05,2]
[404668938,1770405040220,-166.31971927,9.728e-05,2]
[404668939,1770405040229,-150.0,9.728e-05,2]
[404668940,1770405040238,-150.0,9.728e-05,2]
[404668941,1770405040247,-151.49755887,9.783e-05,2]
[404668942,1770405040257,-200.0,9.783e-05,2]
[404668943,1770405040267,-150.0,9.783e-05,2]
[404668944,1770405040276,-500.0,9.812e-05,2]
[404668945,1770405040286,-200.0,9.838e-05,2]
[404668946,1770405040296,-152.0,9.968e-05,2]
[404668947,1770405040305,-420.0,9.968e-05,2]
[404668948,1770405040314,-1680.0,9.968e-05,2]
[404668949,1770405040323,-250.0,9.968e-05,2]
[404668950,1770405040332,-300.0,9.968e-05,2]
[404668951,1770405040341,-193.49422272,9.971e-05,2]
[404668952,1770405040353,-204.2764753,0.0001,2]
[404668953,1770405040362,-151.0,0.0001,2]
[404668954,1770405040371,-151.0,0.0001,2]
[404668955,1770405040380,-613.67515491,0.0001,2]
[404668956,1770405040390,-151.0,0.0001,2]
[404668957,1770405040399,-151.0,0.0001,2]
[404668958,1770405040408,-151.0,0.0001,2]
[404668959,1770405040417,-151.0,0.0001,2]
[404668960,1770405040426,-151.0,0.0001,2]
[404668961,1770405040435,-151.0,0.0001,2]
[404668962,1770405040445,-151.0,0.0001,2]
[404668963,1770405040455,-151.0,0.0001,2]
[404668964,1770405040464,-151.0,0.0001,2]
[404668965,1770405040474,-151.0,0.0001,2]
[404668966,1770405040483,-151.0,0.0001,2]
[404668967,1770405040492,-151.0,0.0001,2]
[404668968,1770405040501,-151.0,0.0001,2]
[404668969,1770405040510,-151.0,0.0001,2]
[404668970,1770405040520,-151.0,0.0001,2]
[404668971,1770405040531,-151.0,0.0001,2]
[404668972,1770405040540,-151.0,0.0001,2]
[404668973,1770405040550,-151.0,0.0001,2]
[404668974,1770405040559,-151.0,0.0001,2]
[404668975,1770405040569,-151.0,0.0001,2]
[404668976,1770405040578,-151.0,0.0001,2]
[404668977,1770405040588,-151.0,0.0001,2]
[404668978,1770405040597,-151.0,0.0001,2]
[404668979,1770405040610,-151.0,0.0001,2]
[404668980,1770405040619,-151.0,0.0001,2]
[404668981,1770405040628,-151.0,0.0001,2]
[404668982,1770405040637,-151.0,0.0001,2]
[404668983,1770405040647,-263.53,0.0001,2]
[404668984,1770405040656,-151.0,0.0001,2]
[404668985,1770405040666,-151.0,0.0001,2]
[404668986,1770405040675,-151.0,0.0001,2]
[404668987,1770405040684,-151.0,0.0001,2]
[404668988,1770405040694,-151.0,0.0001,2]
[404668989,1770405040703,-151.0,0.0001,2]
[404668990,1770405040712,-151.0,0.0001,2]
[404668991,1770405040721,-167.28758612,0.0001,2]
[404668992,1770405040730,-1138.16561732,0.0001,2]
[404668993,1770405040739,-1138.16561732,0.0001,2]
[404668994,1770405040748,-150.0,0.00010025,2]
[404668995,1770405040758,-150.0,0.00010025,2]
[404668996,1770405040767,-150.0,0.00010025,2]
[404668997,1770405040776,-150.0,0.00010025,2]
[404668998,1770405040785,-500.0,0.00010025,2]
[404668999,1770405040795,-151.0,0.00010038,2]
[404669000,1770405040929,-361372.3,0.00010041,2]
[404669001,1770405040977,-420.0,0.00010066,2]
[404669002,1770405040986,-255.0,0.00010067,2]
[404669003,1770405040996,-150.0,0.0001008,2]
[404669004,1770405041006,-150.0,0.0001008,2]
[404669005,1770405041015,-500.0,0.0001008,2]
[404669006,1770405041024,-500.0,0.00010086,2]
[404669007,1770405041035,-150.0,0.00010099,2]
[404669008,1770405041044,-150.0,0.00010099,2]
[404669009,1770405041055,-150.0,0.00010099,2]
[404669010,1770405041063,-200.0,0.00010135,2]
[404669011,1770405041073,-500.0,0.00010135,2]
[404669012,1770405041083,-150.0,0.00010154,2]
[404669013,1770405041092,-150.0,0.00010154,2]
[404669014,1770405041105,-516.0,0.00010189,2]
[404669015,1770405041114,-150.0,0.00010209,2]
[404669016,1770405041124,-200.0,0.00010209,2]
[404669017,1770405041134,-150.0,0.00010263,2]
[404669018,1770405041143,-150.0,0.00010318,2]
[404669019,1770405041154,-500.0,0.0001036,2]
[404669020,1770405041164,-500.0,0.00010373,2]
[404669021,1770405041174,-500.0,0.00010373,2]
[404669022,1770405041184,-500.0,0.00010373,2]
[404669023,1770405041193,-500.0,0.00010373,2]
[404669024,1770405041202,-500.0,0.00010373,2]
[404669025,1770405041212,-505.56624266,0.00010373,2]
[404669026,1770405041223,-500.0,0.00010373,2]
[404669027,1770405041232,-500.0,0.00010373,2]
[404669028,1770405041242,-408.34309823,0.00010373,2]
[404669029,1770405041251,-574.23696908,0.00010373,2]
[404669030,1770405041261,-500.0,0.00010373,2]
[404669031,1770405041271,-500.0,0.00010373,2]
[404669032,1770405041281,-500.0,0.00010373,2]
[404669033,1770405041294,-250.0,0.00010373,2]
[404669034,1770405041304,-500.0,0.00010634,2]
[404669035,1770405041314,-1600.0,0.00010672,2]
[404669036,1770405041324,-247.48,0.00010726,2]
[404669037,1770405041338,-150.51948842,0.00010818,2]
[404669038,1770405041347,-150.0,0.00010818,2]
[404669039,1770405041358,-150.0,0.00010818,2]
[404669040,1770405041367,-150.0,0.00010818,2]
[404669041,1770405041376,-150.0,0.00010818,2]
[404669042,1770405041386,-150.0,0.00010818,2]
[404669043,1770405041395,-150.0,0.00010818,2]
[404669044,1770405041404,-150.0,0.00010818,2]
[404669045,1770405041413,-150.0,0.00010873,2]
[404669046,1770405041422,-150.0,0.00010873,2]
[404669047,1770405041431,-150.0,0.00010873,2]
[404669048,1770405041440,-150.0,0.00010873,2]
[404669049,1770405041449,-150.0,0.00010873,2]
[404669050,1770405041459,-150.0,0.00010873,2]
[404669051,1770405041468,-150.0,0.00010873,2]
[404669052,1770405041477,-502.96360645,0.00010908,2]
[404669053,1770405041486,-1000.0,0.00010921,2]
[404669054,1770405041495,-1000.0,0.00010921,2]
[404669055,1770405041505,-1000.0,0.00010921,2]
[404669056,1770405041514,-1000.0,0.00010921,2]
[404669057,1770405041523,-509.49329008,0.00010921,2]
[404669058,1770405041536,-1000.0,0.00010921,2]
[404669059,1770405041546,-1000.0,0.00010921,2]
[404669060,1770405041555,-1002.08630152,0.00010921,2]
[404669061,1770405041564,-1000.0,0.00010921,2]
[404669062,1770405041574,-1000.0,0.00010921,2]
[404669063,1770405041583,-150.0,0.00010928,2]
[404669064,1770405041592,-150.0,0.00010928,2]
[404669065,1770405041604,-150.0,0.00010928,2]
[404669066,1770405041613,-150.0,0.00010928,2]
[404669067,1770405041622,-150.0,0.00010928,2]
[404669068,1770405041632,-150.0,0.00010959,2]
[404669069,1770405041641,-587.0,0.00010965,2]
[404669070,1770405041650,-2351.0,0.00010965,2]
[404669071,1770405041659,-150.0,0.00010982,2]
[404669072,1770405041668,-150.0,0.00010982,2]
[404669073,1770405041678,-150.0,0.00010982,2]
[404669074,1770405041687,-150.0,0.00010982,2]
[404669075,1770405041696,-150.0,0.00010982,2]
[404669076,1770405041704,-150.0,0.00011037,2]
[404669077,1770405041713,-150.0,0.00011037,2]
[404669078,1770405041722,-150.0,0.00011037,2]
[404669079,1770405041732,-150.0,0.00011037,2]
[404669080,1770405041741,-150.0,0.00011037,2]
[404669081,1770405041750,-320.0,0.00011073,2]
[404669082,1770405041759,-433.0,0.00011074,2]
[404669083,1770405041769,-250.0,0.00011092,2]
[404669084,1770405041779,-250.0,0.00011092,2]
[404669085,1770405041788,-250.0,0.00011092,2]
[404669086,1770405041797,-250.0,0.00011092,2]
[404669087,1770405041806,-250.0,0.00011092,2]
[404669088,1770405041815,-33147.45550718,0.00011099,2]
[404669089,1770405041825,-33147.45550711,0.00011099,2]
[404669090,1770405041834,-33147.45550711,0.00011099,2]
[404669091,1770405041843,-9143.97386122,0.00011099,2]
[404669092,1770405041854,-9143.97386118,0.00011099,2]
[404669093,1770405041863,-9143.97386118,0.00011099,2]
[404669094,1770405041872,-1500.0,0.00011468,2]
[404669095,1770405041881,-1500.0,0.00011468,2]
[404669096,1770405041891,-1500.0,0.00011468,2]
[404669097,1770405041900,-1500.0,0.00011468,2]
[404669098,1770405041909,-202.80837267,0.00011468,2]
[404669099,1770405041918,-3823.96,0.00011596,2]
[404669100,1770405041928,-1600.0,0.00011739,2]
[404669101,1770405041937,-600.0,0.00011929,2]
[404669102,1770405041947,-250.0,0.00011975,2]
[404669103,1770405041956,-9143.97386118,0.00012009,2]
[404669104,1770405041965,-849.18395774,0.00012016,2]
[404669105,1770405041974,-2000.0,0.00012016,2]
[404669106,1770405041984,-2000.0,0.00012016,2]
[404669107,1770405041993,-689.11468629,0.00012016,2]
[404669108,1770405042002,-823.0,0.00012062,2]
[404669109,1770405042012,-3292.0,0.00012062,2]
[404669110,1770405042021,-736.0,0.00012181,2]
[404669111,1770405042031,-2500.0,0.00012564,2]
[404669112,1770405042040,-2500.0,0.00012564,2]
[404669113,1770405042049,-361.06,0.00012786,2]
[404669114,1770405042059,-1600.0,0.00012806,2]
[404669115,1770405042068,-9143.97386118,0.00012991,2]
[404669116,1770405042078,-2291.24412758,0.00013112,2]
[404669117,1770405042087,-1152.0,0.00013268,2]
[404669118,1770405042097,-4609.0,0.00013268,2]
[404669119,1770405042108,-1252.0,0.00013399,2]
[404669120,1770405042118,-3240.0,0.00013425,2]
[404669121,1770405042127,-315.61,0.00013476,2]
[404669122,1770405042137,-167.2875861,0.00013482,2]
[404669123,1770405042147,-3140.52066298,0.00013482,2]
[404669124,1770405042156,-500.0,0.00013698,2]
[404669125,1770405042166,-500.0,0.00013698,2]
[404669126,1770405042176,-441.42781649,0.00013698,2]
[404669127,1770405042186,-500.0,0.00013698,2]
[404669128,1770405042195,-500.0,0.00013698,2]
[404669129,1770405042205,-500.0,0.00013698,2]
[404669130,1770405042215,-500.0,0.00013698,2]
[404669131,1770405042225,-500.0,0.00013698,2]
[404669132,1770405042236,-446.12869816,0.00013698,2]
[404669133,1770405042248,-200.0,0.00013698,2]
[404669134,1770405042261,-500.0,0.00013698,2]
[404669136,1770405042273,-500.0,0.00013698,2]
[404669137,1770405042285,-500.0,0.00013698,2]
[404669138,1770405042300,-500.0,0.00013698,2]
[404669139,1770405042312,-500.0,0.00013698,2]
[404669140,1770405042322,-571.90548312,0.00013698,2]
[404669141,1770405042332,-504.11677041,0.00013698,2]
[404669142,1770405042342,-500.0,0.00013698,2]
[404669143,1770405042351,-503.69401691,0.00013698,2]
[404669144,1770405042361,-500.0,0.00013698,2]
[404669145,1770405042371,-500.0,0.00013698,2]
[404669146,1770405042380,-500.0,0.00013698,2]
[404669147,1770405042389,-500.0,0.00013698,2]
[404669148,1770405042398,-500.0,0.00013698,2]
[404669149,1770405042407,-500.0,0.00013698,2]
[404669150,1770405042416,-500.0,0.00013698,2]
[404669151,1770405042425,-500.0,0.00013698,2]
[404669152,1770405042434,-500.0,0.00013698,2]
[404669153,1770405042443,-500.0,0.00013698,2]
[404669154,1770405042453,-500.0,0.00013698,2]
[404669155,1770405042462,-500.0,0.00013698,2]
[404669156,1770405042471,-500.0,0.00013698,2]
[404669157,1770405042480,-500.0,0.00013698,2]
[404669158,1770405042489,-500.0,0.00013698,2]
[404669159,1770405042499,-500.0,0.00013698,2]
[404669160,1770405042513,-500.0,0.00013698,2]
[404669161,1770405042522,-500.0,0.00013698,2]
[404669162,1770405042534,-499.07717384,0.00013698,2]
[404669163,1770405042543,-500.0,0.00013698,2]
[404669164,1770405042552,-500.0,0.00013698,2]
[404669165,1770405042562,-500.0,0.00013698,2]
[404669166,1770405042572,-500.0,0.00013698,2]
[404669167,1770405042581,-500.0,0.00013698,2]
[404669168,1770405042590,-500.0,0.00013698,2]
[404669169,1770405042601,-500.0,0.00013698,2]
[404669170,1770405042610,-500.0,0.00013698,2]
[404669171,1770405042619,-500.0,0.00013698,2]
[404669172,1770405042629,-500.0,0.00013698,2]
[404669173,1770405042638,-500.0,0.00013698,2]
[404669174,1770405042648,-500.0,0.00013698,2]
[404669175,1770405042657,-500.0,0.00013698,2]
[404669176,1770405042667,-500.0,0.00013698,2]
[404669177,1770405042678,-500.0,0.00013698,2]
[404669178,1770405042687,-532.65205018,0.00013698,2]
[404669179,1770405042697,-500.0,0.00013698,2]
[404669180,1770405042707,-500.0,0.00013698,2]
[404669181,1770405042717,-500.0,0.00013698,2]
[404669182,1770405042727,-500.0,0.00013698,2]
[404669183,1770405042736,-500.0,0.00013698,2]
[404669184,1770405042745,-500.0,0.00013698,2]
[404669185,1770405042755,-500.0,0.00013698,2]
[404669186,1770405042764,-500.0,0.00013698,2]
[404669187,1770405042773,-516.54058196,0.00013698,2]
[404669188,1770405042782,-500.0,0.00013698,2]
[404669189,1770405042791,-500.0,0.00013698,2]
[404669190,1770405042800,-500.0,0.00013698,2]
[404669191,1770405042809,-587.5541255,0.00013698,2]
[404669192,1770405042819,-500.0,0.00013698,2]
[404669193,1770405042831,-523.26417397,0.00013698,2]
[404669194,1770405042840,-500.0,0.00013698,2]
[404669195,1770405042849,-283.9117133,0.00013698,2]
[404669196,1770405042860,-500.0,0.00013698,2]
[404669197,1770405042869,-500.0,0.00013698,2]
[404669198,1770405042879,-500.0,0.00013698,2]
[404669199,1770405042888,-500.0,0.00013698,2]
[404669200,1770405042897,-500.0,0.00013698,2]
[404669201,1770405042906,-500.0,0.00013698,2]
[404669202,1770405042915,-500.0,0.00013698,2]
[404669203,1770405042925,-477.29936804,0.00013698,2]
[404669204,1770405042936,-374.7451931,0.00013698,2]
[404669205,1770405042945,-500.0,0.00013698,2]
[404669206,1770405042955,-500.0,0.00013698,2]
[404669207,1770405042964,-500.0,0.00013698,2]
[404669208,1770405042974,-500.0,0.00013698,2]
[404669209,1770405042983,-500.0,0.00013698,2]
[404669210,1770405042993,-499.73386374,0.00013698,2]
[404669211,1770405043002,-500.0,0.00013698,2]
[404669212,1770405043012,-500.0,0.00013698,2]
[404669213,1770405043021,-500.0,0.00013698,2]
[404669214,1770405043031,-500.0,0.00013698,2]
[404669215,1770405043040,-500.0,0.00013698,2]
[404669216,1770405043050,-500.0,0.00013698,2]
[404669217,1770405043059,-326.5559361,0.00013698,2]
[404669218,1770405043069,-500.0,0.00013698,2]
[404669219,1770405043079,-500.0,0.00013698,2]
[404669220,1770405043089,-500.0,0.00013698,2]
[404669221,1770405043098,-500.0,0.00013698,2]
[404669222,1770405043109,-500.0,0.00013698,2]
[404669223,1770405043119,-500.0,0.00013698,2]
[404669224,1770405043129,-500.0,0.00013698,2]
[404669225,1770405043139,-500.0,0.00013698,2]
[404669226,1770405043149,-500.0,0.00013698,2]
[404669227,1770405043159,-353.03533501,0.00013698,2]
[404669228,1770405043169,-500.0,0.00013698,2]
[404669229,1770405043179,-500.0,0.00013698,2]
[404669230,1770405043188,-500.0,0.00013698,2]
[404669231,1770405043197,-500.0,0.00013698,2]
[404669232,1770405043207,-166.98,0.00013698,2]
[404669233,1770405043216,-384.73810332,0.00013698,2]
[404669235,1770405043226,-13456.85,0.00013699,2]
[404669238,1770405043235,-500.0,0.00013699,2]
[404669240,1770405043245,-9143.97386118,0.00013973,2]
[404669242,1770405043255,-1000.0,0.00014247,2]
[404669243,1770405043264,-1613.0,0.00014594,2]
[404669244,1770405043274,-6453.0,0.00014594,2]
[404669245,1770405043285,-859.0,0.00014744,2]
[404669246,1770405043295,-1500.0,0.00014795,2]
[404669247,1770405043304,-3054.0,0.00014986,2]
[404669248,1770405043314,-250.0,0.00015,2]
[404669249,1770405043324,-225.37,0.00015068,2]
[404669250,1770405043334,-1500.0,0.000152,2]
[404669251,1770405043344,-500.0,0.00015753,2]
[404669252,1770405043354,-2258.0,0.00016054,2]
[404669253,1770405043364,-3292.0,0.00016054,2]
[404669254,1770405043374,-166.68942508,0.00016194,2]
[404669255,1770405043384,-225.37,0.00016438,2]
[404669256,1770405043394,-227.37,0.00016438,2]
[404669257,1770405043410,-165.79,0.00016712,2]
[404669258,1770405043424,-1500.0,0.000168,2]
[404669259,1770405043442,-19999.99,0.00016922,2]
[404669260,1770405043452,-1901.02614896,0.00016995,2]
[404669261,1770405043462,-300.0,0.00017,2]
[404669262,1770405043472,-500.0,0.00017,2]
[404669263,1770405043481,-537.0,0.00017659,2]
[404669264,1770405043492,-371.675712,0.0001776,7]
[404669265,1770405043501,-2000.0,0.0001783,2]
[404669266,1770405043512,-2000.0,0.0001788,2]
[404669267,1770405043522,-500.0,0.000179,2]
[404669268,1770405043534,-167.2875861,0.000179,2]
[404669269,1770405043544,-3140.52066298,0.000179,2]
[404669270,1770405043553,-2000.0,0.0001793,2]
[404669271,1770405043562,-2000.0,0.0001798,2]
[404669272,1770405043571,-1138.16561732,0.0001799,2]
[404669273,1770405043581,-151.0,0.00017997,2]
[404669274,1770405043590,-300.0,0.00017999,2]
[404669275,1770405043600,-300.0,0.00017999,2]
[404669276,1770405043611,-666.0,0.00017999,2]
[404669277,1770405043620,-666.0,0.00017999,2]
[404669278,1770405043629,-300.0,0.00017999,2]
[404669279,1770405043638,-300.0,0.00017999,2]
[404669280,1770405043647,-666.0,0.00017999,2]
[404669281,1770405043656,-1261198.51034069,0.00018,2]
[404669282,1770405043673,-1890.52566694,0.00018,2]
[404669283,1770405043718,-151.0,0.00010982,2]
[404669284,1770405043728,-151.0,0.00010982,2]
[404669285,1770405043737,-8178.20863526,0.00012009,2]
[404669286,1770405043748,-24969.24687185,0.00012009,2]
[404669287,1770405043758,-9143.97386118,0.00014955,2]
[404669288,1770405043767,-36012.337882,0.00018,2]
[404669289,1770405044284,-1579.44,0.00018,2]
[404669290,1770405044385,-3014.46706678,0.00018,2]
[404669292,1770405044403,-531.31399237,0.00018,2]
[404669294,1770405044417,-293.47590332,0.00018,2]
[404669296,1770405044430,-287.80291528,0.00018,2]
[404669327,1770405045499,-2618.07234649,9.164e-05,2]
[404669329,1770405045509,-1095.01060964,0.00018,2]
[404669331,1770405045520,-18770.97929346,0.00018,2]
[404669333,1770405045534,-4516.21416499,0.00018,2]
[404669335,1770405045545,-400.0,0.00018,2]
[404669336,1770405045709,-553.29706463,0.00018,2]
[404669337,1770405045721,-1159.3,0.00018,2]
[404669338,1770405045732,-400.0,0.00018,2]
[404669354,1770405045981,-33046.96278519,0.00018,2]
[404669356,1770405045994,-1000.0,0.00018,2]
[404669358,1770405046006,-522.02000001,0.00018,2]
[404669361,1770405046020,-1055.46786095,0.00018,2]
[404669366,1770405241169,300.0,8.962e-05,2]
[404669367,1770405272256,417.88112349,8.962e-05,2]
[404669368,1770405272290,213.57363929,8.962e-05,2]
[404669369,1770405272342,500.0,8.962e-05,2]
[404669370,1770405272625,603.97275779,8.962e-05,2]
[404669371,1770405272970,500.0,8.962e-05,2]
[404669372,1770405275718,221.28848559,8.962e-05,2]
[404669373,1770405275748,500.0,8.962e-05,2]
[404669374,1770405275784,500.0,8.962e-05,2]
[404669375,1770405275820,593.68587194,8.962e-05,2]
[404669376,1770405275857,593.68587194,8.962e-05,2]
[404669377,1770405276055,500.0,8.962e-05,2]
[404669378,1770405276088,593.68587194,8.962e-05,2]
[404669379,1770405276119,500.0,8.962e-05,2]
[404669380,1770405276152,593.68587194,8.962e-05,2]
[404669381,1770405276183,554.19674974,8.962e-05,2]